Cogmind - Beta 16 @@@ ROGUE MODE // 2025.11.25 @ 21:50:37 Player: Skysub Result: Destroyed by H-61 Shepherd with Heavy Assault Cannon Performance ------------- Evolutions (3) 1500 Regions Visited (5) 1000 Robots Destroyed (2) 10 Value Destroyed (15) 15 Prototype IDs (0) 0 Alien Tech Used (0) 0 Bonus (0) 0 TOTAL SCORE: 2525 Bonus ------- None Cogmind --------- Core Integrity 0/700 Matter 285/300 Energy 99/100 System Corruption 3% Temperature Cool (0) Movement Core (50) Location -7/Factory Parts ------- > --- POWER (2) -------- (None) > --- PROPULSION (4) --- (None) > --- UTILITY (5) ------ Improved Propulsion Shielding > --- WEAPON (2) ------- (None) > --- INVENTORY (5) ---- Light Ion Engine Light Nuclear Core Greatsword Peak State ------------ > --- POWER ------------ (None) > --- PROPULSION ------- (None) > --- UTILITY ---------- (None) > --- WEAPON ----------- Greatsword > --- INVENTORY -------- Light Ion Engine Light Ion Engine Light Nuclear Core Flail [Rating: 8] Favorites ----------- Power Light Ion Engine Engine Light Ion Engine Propulsion Flight Unit Flight Unit Flight Unit Utility Improved Propulsion Shielding Protection Improved Propulsion Shielding Weapon Greatsword Slashing Weapon Greatsword Build | -11 -10 -10 -9 -8 -7 ------- Run | Yrd Mat Min Mat Mat Fac Slots Evolved 6 | . . . 2 2 2 Power 1 | . . . . . 1 Propulsion 2 | . . . 1 1 . Utility 3 | . . . 1 1 1 Weapon . | . . . . . . Parts Attached 5 | . . 1 . . 4 Power 1 | . . . . . 1 Engine 1 | . . . . . 1 Core . | . . . . . . Reactor . | . . . . . . Propulsion 2 | . . 1 . . 1 Treads . | . . . . . . Leg . | . . . . . . Wheel . | . . . . . . Hover . | . . . . . . Flight 2 | . . 1 . . 1 Utility 1 | . . . . . 1 Device . | . . . . . . Storage . | . . . . . . Processor . | . . . . . . Hackware . | . . . . . . Protection 1 | . . . . . 1 Artifact . | . . . . . . Weapon 1 | . . . . . 1 Energy Gun . | . . . . . . Energy Cannon . | . . . . . . Ballistic Gun . | . . . . . . Ballistic Cannon . | . . . . . . Launcher . | . . . . . . Special Weapon . | . . . . . . Impact Weapon . | . . . . . . Slashing Weapon 1 | . . . . . 1 Piercing Weapon . | . . . . . . Special Melee Weapon . | . . . . . . Unidentified Prototypes . | . . . . . . Parts Lost 3 | . . . 1 . 2 Power 1 | . . . . . 1 Propulsion 2 | . . . 1 . 1 Utility . | . . . . . . Weapon . | . . . . . . Highest Loss Streak 2 | . . . 1 . 2 To Critical Strikes . | . . . . . . Average Backups 3 | 1 2 2 2 3 3 Power 2 | 1 2 2 2 2 2 Propulsion . | . . . . . . Utility . | . . . . . . Weapon . | . . . . . 1 Tool/Special . | . . . . . . Unused Backups 3 | . . . . . 3 Power 2 | . . . . . 2 Propulsion . | . . . . . . Utility . | . . . . . . Weapon 1 | . . . . . 1 Tool/Special . | . . . . . . Average Slot Usage (%) 2 | . . 4 8 . 1 Flight 2 | . . 4 8 . . Peak Build Rating 8 | . . 1 1 . 8 Average Rating 1 | . . . . . 1 On Entrance . | . . . 1 . . Avg Prop Armor Cover (%) . | . . . . . . Naked Turns 396 | . 14 67 9 66 240 Heaviest Build 5 | . . . . . 5 Greatest Support 6 | 3 3 4 4 3 6 Greatest Overweight (x) 1 | . . . . . 1 Average Overweight (x) . | . . . . . . Largest Inventory Capacity 5 | 5 5 5 5 5 5 Average Capacity 5 | 5 5 5 5 5 5 Most Carried 5 | 2 2 2 2 4 5 Average Carried 3 | 1 2 2 2 3 4 Final Capacity 5 | 5 5 5 5 5 5 Final Carried 4 | 2 2 2 2 4 4 Class Distribution -------------------- 100% | Mutant Dominant Class ---------------- Mutant | -10/Materials Mutant | -10/Mines Mutant | -9/Materials Mutant | -8/Materials Mutant | -7/Factory Resources | -11 -10 -10 -9 -8 -7 ----------- Run | Yrd Mat Min Mat Mat Fac Matter Collected 200 | 190 . . . . 10 Remotely . | . . . . . . Salvage Created 49 | . . 20 . . 29 Parts 4 | . . 2 . . 2 Haulers Intercepted . | . . . . . . Recyclers Shooed 1 | . . . . . 1 Parts Field Recycled . | . . . . . . Retrieved Matter . | . . . . . . Parts Self-Destructed . | . . . . . . Prevented . | . . . . . . Parts Restored . | . . . . . . Kills | -11 -10 -10 -9 -8 -7 ------- Run | Yrd Mat Min Mat Mat Fac Combat Hostiles Destroyed 1 | . . 1 . . . Melee 1 | . . 1 . . . Classes Destroyed 2 | . . 1 . . 1 Builder 1 | . . . . . 1 Swarmer 1 | . . 1 . . . Best Kill Streak 1 | . . 1 . . 1 Combat Bots Only 1 | . . 1 . . . Max Kills in Single Turn 1 | . . 1 . . 1 Gunslinging . | . . . . . . Exploded . | . . . . . . Melee 1 | . . 1 . . . Uniques/NPCs Destroyed . | . . . . . . Combat | -11 -10 -10 -9 -8 -7 -------- Run | Yrd Mat Min Mat Mat Fac Hostile Shots Fired 137 | . . 23 16 19 79 Missed 59 | . . 7 4 10 38 Hits 78 | . . 16 12 9 41 Projectile 78 | . . 16 12 9 41 Critical Strikes 7 | . . . . 2 5 Damage Taken 1212 | . . 142 138 129 803 Core 1105 | . . 142 116 129 718 Absorbed by Shields . | . . . . . . Core Remaining (%) 72 | 100 . 43 71 76 . Volleys Fired . | . . . . . . Largest . | . . . . . . Hottest . | . . . . . . Shots Fired . | . . . . . . Gun . | . . . . . . Cannon . | . . . . . . Launcher . | . . . . . . Special . | . . . . . . Kinetic . | . . . . . . Thermal . | . . . . . . Explosive . | . . . . . . Electromagnetic . | . . . . . . Robot Hit Streak . | . . . . . . Robot Miss Streak . | . . . . . . Penetration Max . | . . . . . . Secondary Targets . | . . . . . . Shots Hit Robots . | . . . . . . Core Hits 4 | . . 2 . . 2 Critical Kills . | . . . . . . Critical Parts Destroyed . | . . . . . . Critical Strikes . | . . . . . . Melee Attacks . | . . . . . . Impact . | . . . . . . Slashing . | . . . . . . Piercing . | . . . . . . Sneak Attacks . | . . . . . . Combat Hostiles . | . . . . . . Follow-up Attacks . | . . . . . . Damage Inflicted 109 | . . 20 . . 89 Guns . | . . . . . . Cannons . | . . . . . . Explosions . | . . . . . . Melee . | . . . . . . Ramming 109 | . . 20 . . 89 Kinetic . | . . . . . . Thermal . | . . . . . . Explosive . | . . . . . . Electromagnetic . | . . . . . . Impact . | . . . . . . Slashing . | . . . . . . Piercing . | . . . . . . Highest Corruption 3 | . . . 1 . 3 Average Corruption 1 | . . . 1 . 1 Corruption Purged . | . . . . . . Corruption Blocked . | . . . . . . Effects 4 | . . . . . 4 Matter Fused 1 | . . . . . 1 Data Loss (minor) 3 | . . . . . 3 Overload Shots . | . . . . . . Overflow Damage . | . . . . . . Projectiles . | . . . . . . Explosions . | . . . . . . Melee . | . . . . . . Knockbacks . | . . . . . . Impact . | . . . . . . Kinetic . | . . . . . . Secondary . | . . . . . . Self-Inflicted Damage 50 | . . 10 . . 40 Shots . | . . . . . . Rammed 27 | . . 4 . . 23 Targets Rammed 27 | . . 4 . . 23 Kicked . | . . . . . . Crushed . | . . . . . . Highest Temperature . | . . . . . . Average Temperature . | . . . . . . Received Heat Transfer 432 | . . . 69 99 264 Siege Activations . | . . . . . . Martial Activations . | . . . . . . Shielding Activations . | . . . . . . Robots Disrupted . | . . . . . . Combat Hostiles . | . . . . . . Robots Corrupted . | . . . . . . Combat Hostiles . | . . . . . . Parts Fried . | . . . . . . Impact Corruptions . | . . . . . . Robots Melted . | . . . . . . Combat Hostiles . | . . . . . . Parts Melted . | . . . . . . Heat Transferred . | . . . . . . Parts Sabotaged . | . . . . . . Parts Stolen . | . . . . . . Parts Stripped . | . . . . . . Power Chain Reactions . | . . . . . . Alert | -11 -10 -10 -9 -8 -7 ------- Run | Yrd Mat Min Mat Mat Fac Maximum Alert Level 1 | . . . . . 1 Low Security (%) 78 | 100 100 100 100 100 61 Level 1 21 | . . . . . 38 Level 2 . | . . . . . . Level 3 . | . . . . . . Level 4 . | . . . . . . Level 5 . | . . . . . . High Security . | . . . . . . Max Security . | . . . . . . Peak Influence 245 | . . 40 11 8 245 Initial 11 | . . . 11 . . Average 72 | . . 11 6 1 126 Influence Increases 428 | . . 50 . 13 365 Destroy 0b10 Robot/C 20 | . . 20 . . . Destroy 0b10 Robot/NC 5 | . . . . . 5 Successful Hack 43 | . . . . 13 30 Lose Combat Pursuer 360 | . . 30 . . 330 Influence Decreases 203 | . . 20 30 13 140 Entered New Map 19 | . . . 19 . . Time Decay 163 | . . 20 10 13 120 Lost Part 21 | . . . 1 . 20 Squads Dispatched 13 | . 1 . 1 2 9 Investigation 11 | . 1 . 1 2 7 Extermination 1 | . . . . . 1 Reinforcement 1 | . . . . . 1 Assault . | . . . . . . Garrison . | . . . . . . Intercept . | . . . . . . Searches Triggered . | . . . . . . Construction Impeded . | . . . . . . Haulers Reinforced . | . . . . . . Active Scanning Responses . | . . . . . . Cargo Convoy Interrupts . | . . . . . . Stealth | -11 -10 -10 -9 -8 -7 --------- Run | Yrd Mat Min Mat Mat Fac Distress Signals 1 | . . . . . 1 Communications Jammed . | . . . . . . Distress Signals . | . . . . . . Times Spotted 53 | . . 11 8 7 27 Peak Tracking Total 20 | . 2 20 9 6 10 Tactical Retreats 11 | . . 2 . . 9 Traps | -11 -10 -10 -9 -8 -7 ------- Run | Yrd Mat Min Mat Mat Fac Traps Triggered . | . . . . . . Indirectly . | . . . . . . Trap Hack Attempts . | . . . . . . Triggered . | . . . . . . Disarmed . | . . . . . . Reprogrammed . | . . . . . . Reused . | . . . . . . Traps Extracted . | . . . . . . Installed . | . . . . . . Triggered . | . . . . . . Machines | -11 -10 -10 -9 -8 -7 ---------- Run | Yrd Mat Min Mat Mat Fac Machines Disabled . | . . . . . . Max in Single Turn . | . . . . . . Machines Repaired . | . . . . . . Machines Dismantled . | . . . . . . Machines Sabotaged . | . . . . . . Overloaded Fab Kills . | . . . . . . Hacking | -11 -10 -10 -9 -8 -7 --------- Run | Yrd Mat Min Mat Mat Fac Machines Accessed 16 | . 1 . 1 6 8 Terminals 14 | . 1 . 1 6 6 Fabricators 2 | . . . . . 2 Repair Stations . | . . . . . . Recycling Units . | . . . . . . Scanalyzers . | . . . . . . Garrison Access . | . . . . . . Total Hacks 42 | . 3 . 4 17 18 Successful 5 | . . . . 3 2 Failed 37 | . 3 . 4 14 16 Catastrophic 9 | . 1 . . 2 6 Database Lockouts . | . . . . . . Manual 44 | . 3 . 4 17 20 Terminals 37 | . 3 . 4 17 13 Fabricators 5 | . . . . . 5 Repair Stations . | . . . . . . Recycling Units . | . . . . . . Scanalyzers . | . . . . . . Garrison Access . | . . . . . . Terminal Hacks 1 | . . . . 1 . Level Access Points 1 | . . . . 1 . Fabricator Hacks . | . . . . . . Repair Station Hacks . | . . . . . . Recycling Unit Hacks . | . . . . . . Scanalyzer . | . . . . . . Garrison Access Hacks . | . . . . . . Unauthorized Hacks 4 | . . . . 2 2 Terminals 3 | . . . . 2 1 Botnet 3 | . . . . 2 1 Fabricators 1 | . . . . . 1 Fabnet 1 | . . . . . 1 Repair Stations . | . . . . . . Recycling Units . | . . . . . . Scanalyzers . | . . . . . . Garrison Access . | . . . . . . Data Cores Recovered . | . . . . . . Used . | . . . . . . Hacking Detections 15 | . 1 . 1 5 8 Full Trace Events 12 | . 1 . 1 3 7 Feedback Events 2 | . . . 1 . 1 Corruption 2 | . . . 1 . 1 Feedback Blocked . | . . . . . . Robot Schematics Acquired . | . . . . . . Robots Built . | . . . . . . Authchips . | . . . . . . Time . | . . . . . . Total Robot Build Rating . | . . . . . . Part Schematics Acquired . | . . . . . . Parts Built . | . . . . . . Authchips . | . . . . . . Time . | . . . . . . Total Part Build Rating . | . . . . . . Part Studies Acquired . | . . . . . . Parts Repaired . | . . . . . . Time . | . . . . . . Parts Recycled . | . . . . . . Recycled Matter . | . . . . . . Retrieved Matter . | . . . . . . Retrieved Components . | . . . . . . Parts Scanalyzed . | . . . . . . Part Schematics Acquired . | . . . . . . Parts Damaged . | . . . . . . Bothacking | -11 -10 -10 -9 -8 -7 ------------ Run | Yrd Mat Min Mat Mat Fac Used RIF Installer . | . . . . . . Robots Hacked . | . . . . . . Non-combat . | . . . . . . Combat . | . . . . . . Robot Hacks Applied . | . . . . . . Relay Couplers Released . | . . . . . . Fabnet Peak Effective % . | . . . . . . Robots Rewired . | . . . . . . Allies Hacked . | . . . . . . Hacks Repelled . | . . . . . . Allies | -11 -10 -10 -9 -8 -7 -------- Run | Yrd Mat Min Mat Mat Fac Total Allies . | . . . . . . Largest Group . | . . . . . . Highest-Rated Group . | . . . . . . Highest-Rated Ally . | . . . . . . Total Orders . | . . . . . . Ally Attacks . | . . . . . . Total Damage . | . . . . . . Kills . | . . . . . . Allies Corrupted . | . . . . . . Allies Melted . | . . . . . . Intel | -11 -10 -10 -9 -8 -7 ------- Run | Yrd Mat Min Mat Mat Fac Active Infowar (turns) . | . . . . . . Robot Analysis Total . | . . . . . . Derelict Logs Recovered 1 | . . 1 . . . Drone Launches . | . . . . . . Drone Recoveries . | . . . . . . Exploration | -11 -10 -10 -9 -8 -7 ------------- Run | Yrd Mat Min Mat Mat Fac Turns Passed 526 | 13 14 108 36 66 289 Spaces Moved 1022 | 22 27 225 85 127 536 Core 764 | 22 27 124 19 127 445 Treads . | . . . . . . Legs . | . . . . . . Wheels . | . . . . . . Hover . | . . . . . . Flight 258 | . . 101 66 . 91 Fastest Speed 40 | 50 50 40 40 50 40 Average Speed 47 | 50 50 45 42 50 48 Slowest Speed 100 | 50 50 50 50 50 100 Overloaded Moves . | . . . . . . Propulsion Burnouts . | . . . . . . Robots Hopped 6 | . . 1 1 . 4 Potential Cave-ins . | . . . . . . Cave-ins Triggered . | . . . . . . Exploration Rate (%) 23 | 3 12 64 17 23 22 Regions Visited 5 Branch Regions 1 Pre-discovered Areas 1 | . . 1 . . . Known Exits Taken 1 | . . . . 1 . Unknown Exits Taken 4 | 1 1 1 1 . . Scrap Searched . | . . . . . . Spaces Dug . | . . . . . . Terrain Destroyed . | . . . . . . Melee . | . . . . . . Projectile . | . . . . . . AOE . | . . . . . . Terrain Rammed . | . . . . . . Walls Destroyed . | . . . . . . Machines Disabled . | . . . . . . Actions | -11 -10 -10 -9 -8 -7 --------- Run | Yrd Mat Min Mat Mat Fac Total 1049 | 23 26 228 83 128 561 Wait . | . . . . . . Move 1005 | 21 26 222 82 126 528 Hop 6 | . . 1 1 . 4 Pick Up 4 | 2 . . . 2 . Fast Attach 4 | . . 1 . . 3 Attach 1 | . . . . . 1 Detach 1 | . . . . . 1 Swap . | . . . . . . Drop 1 | . . . . . 1 Fire . | . . . . . . Melee . | . . . . . . Ram 27 | . . 4 . . 23 Kick . | . . . . . . Crush . | . . . . . . Escape Stasis . | . . . . . . Rewire . | . . . . . . Trap . | . . . . . . Miscellaneous . | . . . . . . Route ------- -11/Scrapyard -10/Materials -10/Mines -9/Materials -8/Materials (discovered 3 exits: *Fac x3) -7/Factory History --------- Turn | Location | Event 8 | -11/Scrapyard | Discovered new exit (range 12) 14 | -11/Scrapyard | Entered Materials 20 | -10/Materials | Discovered new exit (range 16) 28 | -10/Materials | Entered Mines 49 | -10/Mines | Assembled infested the area 102 | -10/Mines | Core integrity fell below 50% 134 | -10/Mines | Discovered new exit (range 5) 135 | -10/Mines | Met a Derelict testing a Signal Generator 136 | -10/Mines | Entered Materials 136 | -9/Materials | Evolved 2 slots: Propulsion x1, Utility x1 164 | -9/Materials | Discovered new exit (range 16) 172 | -9/Materials | Entered another Materials area 172 | -8/Materials | Evolved 2 slots: Propulsion x1, Utility x1 219 | -8/Materials | Identified exit to Factory 238 | -8/Materials | Entered Factory 238 | -7/Factory | Evolved 2 slots: Power x1, Utility x1 308 | -7/Factory | Build established: Mutant 454 | -7/Factory | Core integrity fell below 50% 515 | -7/Factory | Core integrity fell below 20% 527 | -7/Factory | Destroyed by H-61 Shepherd with Heavy Assault Cannon Last Messages --------------- 00464_ Critical hit (Burn: +37). 00465_ System corrupted: Component data lost. 00473_ ALERT: Potential suspicious activity detected, Programmers report to Factory Zone 7A. 00474_ Acquired Xenon Bombardment Thruster. 00487_ Lgt. Ion Engine destroyed. 00490_ Construction Platform disabled. 00495_ ALERT: Hostiles spotted, dispatching reinforcements to Terminal F004. 00501_ Connecting with Terminal... 00501_ ALERT: Suspicious activity at Terminal F016. Dispatching Investigation squad. 00510_ Knocked back. 00512_ System corrupted: Component data lost. 00512_ Xenon Bombardment Thruster destroyed. 00512_ Knocked back. 00514_ Penetrated by Slug. 00514_ Knocked back. 00519_ Acquired Imp. Propulsion Shielding. 00524_ Slammed into T-07 Excavator. Map ----- +----------------------------------------------------+ | | | | | | | | | | | | | | | | | | | | | | | | | | | | | | | | | ???????????????####################??????????????? | | ???????????????# #??????????????? | | ???????????????# ] #??????????????? | | ???????????????# #??????????????? | | ???????????????# #??????????????? | | ????????????????? ???????????????? | | ??????????????????? ?????????????????? | | ????????????????????? ???????????????????? | | ??????????????????????? % ?????????????????????? | | ?????????????????????####@############???????????? | | ??????################ ????????? | | ??????# ! # #?????????????? | | ??????# ! # #?????????????? | | ??????# # #?????????????? | | ??????# """ """ """ + ##### #?????????????? | | ??????# """ """ """ # #???????????????????? | | ??????# """ """ """%; #???????????????????? | | ????????############## #???????????????????? | | ????????????????????##tH ##??????????????????? | | ????????????????????# % #??????????????????? | | ????????????????????# #??????????????????? | | ????????????????????# #??????????????????? | | ????????????????????#t k #??????????????????? | | ????????????????????+ p #??????????????????? | | ????????????????????# #??????????????????? | | ????????????????????# % ########???????????? | | ????????????????????# ????? | | ????????????????????# ########???????????? | | ????????????????????### ###??????????????????? | | ??????????????????????# #????????????????????? | | ??????????????????????# %#????????????????????? | | ??????????????????????# ######?##????????????? | | ??????????????????????# ^## ???????????? | | ??????????????????????# ## """ """???????????? | +----------------------------------------------------+ Best States ------------- Heat Dissipation 34 Energy Generation 5 Energy Capacity 100 Matter Stores 300 Matter Capacity 300 Sight Range 16 Terrain Scan Density 10 Propulsion Shielding 66 Evasion (%) 62 Item Schematics ----------------- None Robot Schematics ------------------ None Fabricated ------------ Nothing Repaired ---------- Nothing Studied --------- None Alien Tech Used ----------------- None Achievements -------------- None Challenges ------------ None Game ------ Seed HellfireScatterAutocannon Manual? 0 Play Time 00:11:27 Cumulative 285.7 hours Start 2025.11.25 @ 21:43:10 End 2025.11.25 @ 21:50:37 Sessions 1 Manual Loads 0 Difficulty Rogue Special Mode None Game No. 312 Rogue 312 Adventurer 0 Explorer 0 Win Type - Total 14 Types 7/0/3/1/1/0/0/1/0/1 Lore% 77 Gallery% 75 Achievement% 57 Wizard Run 0 Options --------- Layout 1 ASCII 0 Keyboard 1 Movement Numpad Keybinds 0 Fullscreen 0 Font 32/SmallcapsGlow Map View 77x35 Zoom Use 0% Tactical HUD 1 Map Filters NONE Filters NONE Steam 1 RUN: d8b457fd-9557-49d7-b493-cb4e463ad90d